bitfinex-derivatives/quotes_SOLF0:USTF0_20241026
["timestamp","ask_amount","ask_price","bid_price","bid_amount"]
[1729913536319,11.39383511,165.58,165.54,1.5129724]
[1729913536516,11.39383511,165.58,165.53,11.39453511]
[1729913536717,11.39383511,165.58,165.54,1.5129793]
[1729913536921,11.39383511,165.58,165.53,11.39453511]
[1729913537118,11.39383511,165.58,165.54,1.51298082]
[1729913537319,11.39383511,165.58,165.53,11.39453511]
[1729913537520,11.39383511,165.58,165.54,1.51298082]
[1729913537819,11.39383511,165.58,165.53,11.39453511]
[1729913538022,11.39383511,165.58,165.54,1.5129793]
[1729913538222,11.39383511,165.58,165.53,11.39453511]
[1729913538420,11.39383511,165.58,165.54,1.51297907]
[1729913538724,11.39383511,165.58,165.53,11.39453511]
[1729913539022,11.39383511,165.58,165.54,4.93826923]
[1729913539218,11.39383511,165.58,165.55,1.51296401]
[1729913539417,11.39383511,165.58,165.53,11.39453511]
[1729913539615,11.39383511,165.58,165.54,4.93909868]
[1729913539815,11.39383511,165.58,165.55,1.51296693]
[1729913540011,11.39383511,165.58,165.53,11.39453511]
[1729913540322,11.39383511,165.58,165.54,7.35981277]
[1729913540621,11.39383511,165.58,165.55,1.51296025]
[1729913540818,209.99161066,165.7,165.56,8.36973511]
[1729913541027,8.5036,165.69,165.57,1.51276166]
[1729913541217,8.36973511,165.62,165.58,1.51276166]
[1729913541416,8.36973511,165.62,165.56,8.36973511]
[1729913541623,8.36973511,165.62,165.57,4.94053056]
[1729913541825,8.36973511,165.62,165.58,1.51275917]
[1729913542027,11.39313511,165.62,165.57,3.0241]
[1729913542213,8.36973511,165.62,165.58,4.9403728]
[1729913542523,8.36973511,165.62,165.59,1.51270665]
[1729913542719,8.36973511,165.62,165.57,3.0241]
[1729913542922,8.36973511,165.62,165.58,4.94055503]
[1729913543115,4.82,165.65,165.59,1.51269868]
[1729913543321,4.82,165.65,165.58,3.0239]
[1729913543526,4.82,165.65,165.59,1.5126874]
[1729913543825,4.82,165.65,165.58,3.0239]
[1729913543826,8.36973511,165.62,165.58,3.0239]
[1729913544121,8.36973511,165.62,165.59,1.51268846]
[1729913544425,8.36973511,165.62,165.58,3.0239]
[1729913544626,8.36973511,165.62,165.59,1.51269384]
[1729913544822,8.36973511,165.62,165.58,3.0239]
[1729913545023,8.36973511,165.62,165.59,1.51269407]
[1729913545227,8.36973511,165.62,165.58,3.0239]
[1729913545618,8.36973511,165.62,165.59,1.51269429]
[1729913545928,11.39303511,165.63,165.58,3.0239]
[1729913546320,11.39303511,165.63,165.59,1.51269384]
[1729913546520,11.39303511,165.63,165.58,3.0239]
[1729913546716,11.39303511,165.63,165.59,1.51269428]
[1729913546927,11.39303511,165.63,165.58,3.0239]
[1729913547127,3.0233,165.62,165.59,1.51269451]
[1729913547431,3.0233,165.62,165.58,3.0239]
[1729913547625,3.0233,165.62,165.59,1.51269405]
[1729913547937,3.0233,165.62,165.58,3.0239]
[1729913548224,3.0233,165.62,165.59,1.51269405]
[1729913548428,3.0233,165.62,165.58,3.0239]
[1729913549325,11.39303511,165.62,165.58,3.0239]
[1729913549524,11.39303511,165.62,165.59,1.51270469]
[1729913549722,11.39303511,165.62,165.57,11.39393511]
[1729913550030,11.39303511,165.62,165.58,4.93986427]
[1729913550230,11.39303511,165.62,165.59,1.51270818]
[1729913550425,11.39303511,165.62,165.57,11.39393511]
[1729913550627,11.39303511,165.62,165.58,4.94017581]
[1729913550827,11.39303511,165.62,165.59,1.51270643]
[1729913551019,11.39303511,165.62,165.57,11.39393511]
[1729913551223,11.39303511,165.62,165.58,4.94017582]
[1729913551426,3.0233,165.62,165.59,1.51270666]
[1729913551626,11.39303511,165.62,165.57,11.39393511]
[1729913551919,11.39303511,165.62,165.58,4.94045915]
[1729913552125,11.39303511,165.62,165.59,1.51269954]
[1729913552429,11.39303511,165.62,165.57,11.39393511]
[1729913552624,11.39303511,165.62,165.58,4.9406454]
[1729913552826,11.39303511,165.62,165.57,11.39393511]
[1729913553223,11.39303511,165.62,165.54,3.8414]
[1729913553224,8.36973511,165.62,165.58,4.94062701]
[1729913553425,11.39343511,165.61,165.55,11.39413511]
[1729913553626,11.39343511,165.61,165.56,12.84585023]
[1729913553825,11.39343511,165.61,165.57,7.36092665]
[1729913554027,11.39343511,165.61,165.58,3.42785709]
[1729913554326,8.36973511,165.61,165.54,3.8414]
[1729913554526,8.36973511,165.6,165.55,12.84664075]
[1729913554730,8.36973511,165.6,165.56,4.94088019]
[1729913554933,3.0239,165.59,165.57,1.51281043]
[1729913555235,8.36973511,165.6,165.54,12.21113511]
[1729913555431,8.36973511,165.6,165.55,12.84740782]
[1729913555736,8.36973511,165.58,165.56,4.9411752]
[1729913555930,8.36973511,165.58,165.52,13.18973511]
[1729913556232,8.36973511,165.58,165.53,12.84814844]
[1729913556427,8.36973511,165.58,165.52,13.18973511]
[1729913556627,8.36973511,165.58,165.54,3.93369723]
[1729913556933,3.0242,165.57,165.55,7.36235527]
[1729913557134,3.0242,165.57,165.56,4.94161851]
[1729913557337,3.0242,165.57,165.56,1.51296047]
[1729913557721,3.0242,165.57,165.53,11.39463511]
[1729913557927,3.0242,165.57,165.54,7.36254978]
[1729913558128,3.0242,165.57,165.55,1.51296823]
[1729913558328,3.0242,165.57,165.53,11.39463511]
[1729913558629,3.0242,165.57,165.54,7.3626797]
[1729913558833,3.0242,165.57,165.55,1.51296648]
[1729913559131,3.0242,165.57,165.53,11.39463511]
[1729913559336,3.0242,165.57,165.54,7.36273737]
[1729913559538,3.0242,165.57,165.55,1.51296691]
[1729913559723,3.0242,165.57,165.53,11.39463511]
[1729913559929,3.0242,165.57,165.54,1.51296691]
[1729913560129,3.0242,165.57,165.55,1.5129671]
[1729913560333,3.0242,165.57,165.53,3.0249]
[1729913560532,3.0242,165.57,165.54,7.36285833]
[1729913560831,3.0242,165.57,165.55,1.51296732]
[1729913561027,3.0242,165.57,165.53,11.39463511]
[1729913561333,3.0242,165.57,165.54,7.3628251]
[1729913561534,3.0242,165.57,165.55,1.51295998]
[1729913561731,3.0242,165.57,165.53,11.39463511]
[1729913561936,3.0242,165.57,165.54,7.36293762]
[1729913562235,3.0242,165.57,165.55,1.51296666]
[1729913562432,3.0242,165.57,165.53,11.39463511]
[1729913562630,3.0242,165.57,165.54,7.36323807]
[1729913562840,3.0242,165.57,165.55,1.5129671]
[1729913563029,3.0242,165.57,165.53,11.39463511]
[1729913563335,3.0242,165.57,165.54,7.36319416]
[1729913563541,3.0242,165.57,165.55,1.51296666]
[1729913563835,3.0242,165.57,165.53,11.39463511]
[1729913564037,3.0242,165.57,165.54,7.36327322]
[1729913564237,3.0242,165.57,165.55,1.51296666]
[1729913564439,3.0242,165.57,165.53,11.39463511]
[1729913564738,3.0242,165.57,165.54,7.36333406]
[1729913564941,3.0242,165.57,165.55,3.93371842]
[1729913565138,3.0242,165.57,165.56,1.51296862]
[1729913566833,3.025,165.53,165.47,3.8954]
[1729913567035,8.36973511,165.54,165.49,8.36973511]
[1729913567232,8.36973511,165.56,165.52,11.39483511]
[1729913567433,8.36973511,165.56,165.53,5.85067261]
[1729913567744,8.36973511,165.56,165.54,3.42976503]
[1729913567943,8.36973511,165.56,165.52,11.39483511]
[1729913568130,8.36973511,165.56,165.53,5.85066367]
[1729913568335,8.36973511,165.56,165.54,3.42976085]
[1729913568539,8.36973511,165.56,165.52,11.39483511]
[1729913568739,8.36973511,165.56,165.53,11.33849439]
[1729913568940,8.36973511,165.56,165.52,11.39483511]
[1729913569136,8.36973511,165.56,165.53,11.33847716]
[1729913569335,11.39413511,165.56,165.54,5.85057554]
[1729913569541,11.39413511,165.56,165.55,3.42971853]
[1729913571050,11.39413511,165.56,165.52,3.0251]
[1729913571343,11.39413511,165.56,165.53,11.33861177]
[1729913571639,11.39413511,165.56,165.54,5.85062837]
[1729913571837,4.82,165.58,165.55,3.42976043]
[1729913572141,8.36973511,165.57,165.47,3.8954]
[1729913572439,8.36973511,165.57,165.51,8.36973511]
[1729913572637,8.36973511,165.57,165.52,11.33859072]
[1729913572941,8.36973511,165.57,165.53,11.33859072]
[1729913573247,8.36973511,165.57,165.54,5.85061766]
[1729913573546,8.36973511,165.57,165.55,3.42976291]
[1729913573747,8.36973511,165.57,165.53,3.0248]
[1729913574047,11.39393511,165.57,165.54,5.85057789]
[1729913574243,11.39393511,165.57,165.55,3.42972243]
[1729913574440,11.39393511,165.57,165.53,3.0249]
[1729913574744,11.39393511,165.57,165.54,5.85056947]
[1729913574933,11.39393511,165.57,165.55,3.42971573]
[1729913575241,3.9474,165.62,165.48,4.82]
[1729913575549,8.36973511,165.61,165.55,8.36973511]
[1729913575845,8.36973511,165.61,165.56,3.42968495]
[1729913576045,3.0236,165.61,165.57,3.0242]
[1729913576246,11.39333511,165.61,165.57,3.0242]
[1729913576539,11.39333511,165.61,165.58,3.42950141]
[1729913576540,8.36973511,165.61,165.58,3.42950141]
[1729913576746,8.36973511,165.61,165.57,3.0241]
[1729913576945,8.36973511,165.61,165.58,3.42962158]
[1729913577137,8.36973511,165.61,165.57,3.0241]
[1729913577343,8.36973511,165.61,165.58,3.43010154]
[1729913577543,11.39323511,165.61,165.57,3.0241]
[1729913577749,11.39323511,165.61,165.58,3.4299371]
[1729913577946,11.39323511,165.61,165.57,3.0241]
[1729913578151,11.39323511,165.61,165.58,3.42950229]
[1729913578345,11.39323511,165.61,165.57,3.0241]
[1729913578650,11.39323511,165.61,165.58,3.43041824]
[1729913578854,11.39323511,165.61,165.56,3.0244]
[1729913579037,11.39323511,165.61,165.57,7.36364464]
[1729913579242,11.39323511,165.61,165.58,1.51281561]
[1729913579440,11.39323511,165.61,165.56,3.0244]
[1729913579642,11.39323511,165.61,165.57,7.36298912]
[1729913579843,11.39323511,165.61,165.58,1.51282916]
[1729913580045,8.36973511,165.6,165.56,3.0244]
[1729913580243,8.36973511,165.6,165.57,4.94254258]
[1729913580450,8.36973511,165.6,165.56,3.0244]
[1729913580641,8.36973511,165.6,165.57,4.94285819]
[1729913580840,8.36973511,165.6,165.58,1.51284458]
[1729913581045,8.36973511,165.6,165.56,3.0244]
[1729913581241,8.36973511,165.6,165.57,1.51287282]
[1729913581451,8.36973511,165.6,165.56,3.0244]
[1729913581747,3.0238,165.59,165.57,1.51287065]
[1729913581952,8.36973511,165.6,165.54,8.36973511]
[1729913582256,8.36973511,165.6,165.55,12.85448875]
[1729913582452,8.36973511,165.6,165.54,8.36973511]
[1729913582453,8.36973511,165.6,165.56,7.36449158]
[1729913582652,8.36973511,165.6,165.57,4.94383097]
[1729913582842,8.36973511,165.6,165.54,8.36973511]
[1729913583049,8.36973511,165.6,165.55,12.8542116]
[1729913583249,11.39343511,165.6,165.56,7.36436084]
[1729913583454,11.39343511,165.6,165.55,3.0245]
[1729913583455,11.39343511,165.6,165.57,4.94379195]
[1729913583756,11.39343511,165.6,165.55,3.0245]
[1729913583958,11.39343511,165.6,165.56,3.43110096]
[1729913584147,11.39343511,165.6,165.57,1.51288466]
[1729913584355,11.39343511,165.6,165.55,3.0245]
[1729913584657,11.39343511,165.6,165.56,4.94412176]
[1729913584854,3.0247,165.55,165.5,3.0254]
[1729913585056,3.0247,165.55,165.51,5.85225905]
[1729913585249,4.82,165.57,165.47,3.8954]
[1729913585250,8.36973511,165.52,165.47,3.8954]
[1729913585454,8.36973511,165.52,165.48,11.34457858]
[1729913585652,8.36973511,165.52,165.49,11.34457858]
[1729913585853,8.36973511,165.51,165.5,5.8531621]
[1729913586062,8.36973511,165.51,165.5,3.43191492]
[1729913587859,11.39503511,165.51,165.5,3.43191492]
[1729913588059,8.36973511,165.51,165.43,4.82]
[1729913588357,11.39603511,165.46,165.44,11.26189053]
[1729913588550,3.0263,165.46,165.45,5.82156836]
[1729913588758,4.82,165.47,165.37,8.36973511]
[1729913588955,8.36973511,165.43,165.38,11.26265482]
[1729913589157,8.36973511,165.43,165.39,11.26265482]
[1729913589353,8.36973511,165.43,165.4,5.82240911]
[1729913589550,8.36973511,165.44,165.38,8.36973511]
[1729913589755,8.36973511,165.44,165.39,11.25422647]
[1729913589962,8.36973511,165.44,165.4,5.81922384]
[1729913590155,8.36973511,165.44,165.39,8.36973511]
[1729913590360,8.36973511,165.44,165.4,3.3937483]
[1729913590563,8.36973511,165.44,165.39,8.36973511]
[1729913590962,8.36973511,165.44,165.4,3.0272]
[1729913591162,8.36973511,165.44,165.39,8.36973511]
[1729913592262,8.36973511,165.44,165.39,11.39723511]
[1729913593162,8.36973511,165.44,165.35,4.82]
[1729913593163,8.36973511,165.46,165.42,3.0269]
[1729913593353,8.36973511,165.46,165.42,11.39663511]
[1729913594264,8.36973511,165.46,165.42,8.36973511]
[1729913594566,7.82553108,165.54,165.45,8.36973511]
[1729913594861,8.36973511,165.52,165.47,8.36973511]
[1729913595956,11.39483511,165.52,165.47,8.36973511]
[1729913596663,11.39483511,165.52,165.45,11.39593511]
[1729913597362,8.36973511,165.5,165.45,11.39593511]
[1729913599166,7.82553108,165.54,165.43,1.2953]
[1729913599360,11.39573511,165.48,165.43,3.0266]
[1729913599862,3.0253,165.51,165.45,3.0264]
[1729913600054,8.36973511,165.5,165.45,3.0264]
[1729913600258,3.0253,165.51,165.45,3.0264]
[1729913600462,8.36973511,165.5,165.45,3.0264]
[1729913600762,8.36973511,165.5,165.41,1.3376]
[1729913600953,8.36973511,165.47,165.42,1.5136234]
[1729913601153,8.36973511,165.47,165.41,9.70733511]
[1729913601866,8.36973511,165.46,165.41,12.73433511]
[1729913603461,8.36973511,165.46,165.42,3.0269]
[1729913604773,8.36973511,165.47,165.45,3.0264]
[1729913605071,8.36973511,165.47,165.43,8.36973511]
[1729913605774,8.36973511,165.47,165.41,1.3376]
[1729913605959,8.36973511,165.47,165.43,3.0266]
[1729913608266,8.36973511,165.47,165.41,9.70733511]
[1729913608468,8.36973511,165.47,165.43,3.0267]
[1729913608670,3.06281026,165.53,165.44,8.36973511]
[1729913608870,3.06281026,165.53,165.46,8.36973511]
[1729913608871,8.36973511,165.5,165.46,8.36973511]
[1729913609176,8.36973511,165.52,165.48,3.0258]
[1729913610365,8.36973511,165.51,165.48,3.0258]
[1729913615585,8.36973511,165.49,165.42,2.5071]
[1729913615881,132.02569974,165.55,165.38,8.36973511]
[1729913615882,8.36973511,165.44,165.38,8.36973511]
[1729913616083,4.82,165.48,165.38,8.36973511]
[1729913616387,8.36973511,165.43,165.38,8.36973511]
[1729913616680,8.36973511,165.43,165.41,3.027]
[1729913617776,8.36973511,165.43,165.37,4.82]
[1729913617979,8.36973511,165.43,165.38,8.36973511]
[1729913618674,8.36973511,165.43,165.4,3.0272]
[1729913618877,8.36973511,165.42,165.36,1.51424752]
[1729913619073,8.36973511,165.42,165.37,8.36973511]
[1729913620383,8.36973511,165.42,165.39,3.0275]
[1729913622783,8.36973511,165.42,165.38,3.0276]
[1729913625275,8.36973511,165.42,165.39,8.36973511]
[1729913627982,8.36973511,165.42,165.36,4.82]
[1729913628187,8.36973511,165.42,165.38,3.0276]
[1729913632587,6.9178,165.47,165.42,3.0268]
[1729913632790,8.36973511,165.45,165.4,8.36973511]
[1729913633383,8.36973511,165.43,165.38,8.36973511]
[1729913633988,8.36973511,165.44,165.4,3.0272]
[1729913635487,8.36973511,165.44,165.41,3.0271]
[1729913638489,11.39643511,165.44,165.39,3.0274]
[1729913638695,8.36973511,165.43,165.39,3.0274]
[1729913638894,8.36973511,165.43,165.37,8.36973511]
[1729913639595,8.36973511,165.43,165.36,8.36973511]
[1729913640289,3.0268,165.43,165.38,3.0276]
[1729913640482,8.36973511,165.41,165.38,3.0276]
[1729913649704,8.36973511,165.4,165.38,3.0276]
[1729913653303,4.82,165.43,165.26,14.70121864]
[1729913653502,4.82,165.43,165.33,12.7432429]
[1729913653503,8.36973511,165.35,165.33,12.7432429]
[1729913653707,8.36973511,165.35,165.27,3.9158]
[1729913653708,8.36973511,165.35,165.34,1.51453377]
[1729913654304,8.36973511,165.35,165.32,213.19963168]
[1729913654603,8.36973511,165.35,165.33,4.90182333]
[1729913654812,8.36973511,165.35,165.32,213.19963168]
[1729913655002,8.36973511,165.35,165.33,1.51475549]
[1729913655307,8.36973511,165.35,165.32,216.22843168]
[1729913655708,8.36973511,165.35,165.32,213.19963168]
[1729913656002,8.36973511,165.33,165.32,213.19963168]
[1729913656307,8.36973511,165.33,165.32,216.58659203]
[1729913656509,8.36973511,165.33,165.32,213.19963168]
[1729913657707,8.36973511,165.33,165.29,3.0293]
[1729913657899,8.36973511,165.33,165.3,3.38629129]
[1729913658204,8.36973511,165.33,165.31,3.386291]
[1729913658400,8.36973511,165.33,165.29,3.0293]
[1729913658606,8.36973511,165.33,165.3,3.38543347]
[1729913658804,8.36973511,165.33,165.31,3.38543347]
[1729913659110,8.36973511,165.33,165.29,3.0293]
[1729913659313,8.36973511,165.33,165.3,3.38541797]
[1729913659501,8.36973511,165.31,165.25,145.93063527]
[1729913659703,8.36973511,165.3,165.27,3.0296]
[1729913659998,4.8,165.33,165.28,3.38462525]
[1729913660198,8.36973511,165.34,165.31,3.029]
[1729913662104,140.20119806,165.38,165.29,8.36973511]
[1729913662306,8.36973511,165.35,165.33,3.0284]
[1729913662608,8.36973511,165.35,165.3,8.36973511]
[1729913663001,8.36973511,165.35,165.32,3.0287]
[1729913665405,8.36973511,165.34,165.32,3.0287]
[1729913666601,8.36973511,165.34,165.31,3.0288]
[1729913667206,8.36973511,165.34,165.28,4.8]
[1729913667408,145.00119806,165.38,165.29,3.38106086]
[1729913667409,8.36973511,165.32,165.29,3.38106086]
[1729913667608,8.36973511,165.32,165.27,8.36973511]
[1729913667909,8.36973511,165.31,165.28,6.41062231]
[1729913668108,8.36973511,165.31,165.28,3.0295]
[1729913668305,8.36973511,165.31,165.26,9.61463511]
[1729913668504,145.00119806,165.38,165.27,17.16116261]
[1729913668705,8.36973511,165.33,165.28,3.38118417]
[1729913668906,8.36973511,165.33,165.29,3.38118417]
[1729913669111,8.36973511,165.33,165.27,13.77976347]
[1729913669303,8.36973511,165.33,165.28,3.38063085]
[1729913669505,8.36973511,165.33,165.29,6.40983085]
[1729913669707,8.36973511,165.33,165.29,3.0292]
[1729913671314,8.36973511,165.33,165.3,3.0291]
[1729913672517,8.36973511,165.32,165.29,3.0292]
[1729913673820,8.36973511,165.3,165.25,145.93063527]
[1729913674015,8.36973511,165.3,165.27,3.0295]
[1729913676025,8.36973511,165.28,165.18,2.5602]
[1729913676232,8.36973511,165.27,165.19,4.82]
[1729913676527,8.36973511,165.27,165.22,8.36973511]
[1729913677327,8.36973511,165.28,165.23,8.36973511]
[1729913677632,8.36973511,165.3,165.25,8.36973511]
[1729913677937,8.36973511,165.29,165.25,8.36973511]
[1729913678230,8.36973511,165.29,165.25,11.39973511]
[1729913680735,8.36973511,165.29,165.25,3.03]
[1729913682432,2.5186,165.32,165.25,8.36973511]
[1729913682635,4.82,165.35,165.28,8.36973511]
[1729913682936,8.36973511,165.34,165.29,8.36973511]
[1729913683439,8.36973511,165.34,165.29,11.39903511]
[1729913684531,8.36973511,165.33,165.29,11.39903511]
[1729913685634,8.36973511,165.33,165.29,3.0293]
[1729913685936,8.36973511,165.32,165.26,13.18973511]
[1729913686236,8.36973511,165.3,165.27,3.38420017]
[1729913686431,8.36973511,165.3,165.28,3.38420017]
[1729913686632,8.36973511,165.3,165.26,13.18973511]
[1729913686827,8.36973511,165.3,165.27,6.41361271]
[1729913687034,8.36973511,165.3,165.28,3.38411271]
[1729913687236,8.36973511,165.3,165.27,3.0295]
[1729913687438,8.36973511,165.3,165.28,3.38401039]
[1729913687640,8.36973511,165.3,165.27,3.0297]
[1729913687833,8.36973511,165.3,165.28,3.38401036]
[1729913688036,8.36973511,165.3,165.27,3.0297]
[1729913688238,8.36973511,165.3,165.28,3.38401036]
[1729913688439,8.36973511,165.3,165.27,3.0297]
[1729913689040,8.36973511,165.3,165.26,16.21963511]
[1729913689232,8.36973511,165.3,165.27,3.38408057]
[1729913689430,8.36973511,165.3,165.26,4.82]
[1729913689633,8.36973511,165.3,165.27,3.38399129]
[1729913689932,8.36973511,165.3,165.25,11.39973511]
[1729913690432,8.36973511,165.3,165.26,3.38402809]
[1729913690637,8.36973511,165.3,165.25,11.39973511]
[1729913690834,8.36973511,165.3,165.26,3.38382797]
[1729913691039,3.029,165.31,165.25,11.39973511]
[1729913691341,8.36973511,165.29,165.26,3.38367254]
[1729913691540,3.0288,165.32,165.26,3.0297]
[1729913691742,8.36973511,165.3,165.26,3.0297]
[1729913694133,8.36973511,165.29,165.22,4.8]
[1729913694441,8.36973511,165.28,165.23,17.16618192]
[1729913694634,8.36973511,165.28,165.24,3.38311458]
[1729913694834,8.36973511,165.28,165.25,3.38311458]
[1729913695132,8.36973511,165.28,165.23,8.36973511]
[1729913695336,8.36973511,165.28,165.24,3.38273971]
[1729913695542,8.36973511,165.28,165.25,3.38273971]
[1729913695738,8.36973511,165.28,165.25,3.03]
[1729913696832,8.36973511,165.28,165.22,4.8]
[1729913697036,8.36973511,165.26,165.23,8.79519635]
[1729913697241,8.36973511,165.26,165.22,8.36973511]
[1729913697242,8.36973511,165.26,165.24,3.38263364]
[1729913697435,8.36973511,165.26,165.22,8.36973511]
[1729913697633,2.5898,165.31,165.18,163.7164286]
[1729913697634,8.36973511,165.23,165.18,163.7164286]
[1729913697838,8.36973511,165.23,165.19,3.38304954]
[1729913698036,8.36973511,165.23,165.18,161.1562286]
[1729913698535,3.01322872,165.27,165.18,155.81779349]
[1729913698536,8.36973511,165.22,165.18,155.81779349]
[1729913698735,8.36973511,165.2,165.18,152.78649349]
[1729913700741,8.36973511,165.2,165.14,3.0319]
[1729913700742,11.40073511,165.2,165.14,3.0319]
[1729913700940,8.36973511,165.19,165.13,4.8]
[1729913701245,8.36973511,165.19,165.15,8.36973511]
[1729913701439,8.36973511,165.19,165.16,3.34126319]
[1729913701643,8.36973511,165.19,165.15,11.40143511]
[1729913702045,8.36973511,165.19,165.16,3.0317]
[1729913702847,8.36973511,165.18,165.14,3.032]
[1729913703144,8.36973511,165.18,165.13,8.36973511]
[1729913703347,8.36973511,165.18,165.14,3.33721213]
[1729913703645,8.36973511,165.18,165.13,8.36973511]
[1729913704149,8.36973511,165.18,165.14,3.3374352]
[1729913704440,8.36973511,165.18,165.15,3.0318]
[1729913704847,4.8,165.23,165.15,3.0318]
[1729913705039,8.36973511,165.19,165.15,3.0318]
[1729913709940,2.493,165.25,165.18,8.36973511]
[1729913710140,10.86273511,165.25,165.2,8.36973511]
[1729913710347,8.36973511,165.25,165.2,8.36973511]
[1729913710543,8.36973511,165.25,165.22,3.0304]
[1729913711347,8.36973511,165.26,165.23,3.0304]
[1729913711549,8.36973511,165.27,165.23,3.0304]
[1729913713556,136.33229806,165.38,165.26,8.36973511]
[1729913713751,136.33229806,165.38,165.23,4.8]
[1729913713752,8.36973511,165.34,165.28,8.36973511]
[1729913713942,8.36973511,165.32,165.28,7.8293]
[1729913714147,8.36973511,165.3,165.28,4.8]
[1729913714651,8.36973511,165.29,165.28,4.8]
[1729913715050,8.36973511,165.29,165.26,3.0299]
[1729913718749,8.36973511,165.3,165.25,4.8]
[1729913718956,8.36973511,165.3,165.25,13.16973511]
[1729913719845,2.6214,165.37,165.27,8.36973511]
[1729913720054,8.36973511,165.34,165.28,8.36973511]
[1729913720654,8.36973511,165.34,165.28,11.39923511]
[1729913721452,8.36973511,165.34,165.28,8.36973511]
[1729913721657,8.36973511,165.34,165.29,3.0292]
[1729913722559,8.36973511,165.32,165.27,11.39933511]
[1729913726862,8.36973511,165.33,165.28,8.36973511]
[1729913728953,8.36973511,165.32,165.27,3.0296]
[1729913730459,8.36973511,165.32,165.26,8.36973511]
[1729913730667,8.36973511,165.32,165.26,11.39943511]
[1729913731662,8.36973511,165.32,165.27,3.0296]
[1729913733267,3.0282,165.35,165.29,3.0292]
[1729913733565,8.36973511,165.33,165.27,8.36973511]
[1729913734366,8.36973511,165.33,165.27,13.16973511]
[1729913735365,8.36973511,165.33,165.28,3.0295]
[1729913735561,2.6214,165.37,165.3,8.36973511]
[1729913735869,8.36973511,165.36,165.3,8.36973511]
[1729913736263,8.36973511,165.35,165.3,3.029]
[1729913737071,8.36973511,165.35,165.31,3.0289]
[1729913738857,3.0281,165.36,165.31,3.0289]
[1729913738858,8.36973511,165.36,165.31,3.0289]
[1729913739669,11.39783511,165.36,165.31,3.0289]
[1729913743869,8.36973511,165.33,165.24,1.2712]
[1729913744170,8.36973511,165.33,165.26,8.36973511]
[1729913744764,3.0288,165.32,165.27,3.0297]
[1729913746372,3.0288,165.32,165.26,11.39953511]
[1729913749272,3.0288,165.32,165.27,8.36973511]
[1729913751275,5.63199005,165.39,165.27,8.36973511]
[1729913751477,8.36973511,165.33,165.27,13.16973511]
[1729913752274,11.39843511,165.33,165.27,16.19923511]
[1729913753277,11.39813511,165.35,165.29,3.0293]
[1729913753471,11.39813511,165.35,165.29,11.39903511]
[1729913754583,3.0284,165.35,165.3,3.0291]
[1729913754785,3.0285,165.34,165.29,8.36973511]
[1729913756389,3.0285,165.34,165.29,11.39893511]
[1729913759789,3.0289,165.32,165.26,3.0298]
[1729913759994,8.36973511,165.31,165.27,8.20696973]
[1729913760191,8.36973511,165.31,165.27,4.8]
[1729913760692,11.39883511,165.31,165.27,4.8]
[1729913761788,8.36973511,165.31,165.27,4.8]
[1729913762286,3.0288,165.32,165.27,13.16973511]
[1729913762993,143.16346886,165.39,165.31,8.36973511]
[1729913763189,140.17787881,165.39,165.33,8.36973511]
[1729913763395,140.17787881,165.39,165.34,8.36973511]
[1729913763594,148.54761392,165.39,165.33,11.39813511]
[1729913765390,151.57521392,165.39,165.33,11.39813511]
[1729913766899,148.54761392,165.39,165.33,8.36973511]
[1729913768298,151.57511392,165.39,165.33,11.39833511]
[1729913769797,148.54761392,165.39,165.33,8.36973511]
[1729913769998,3.0278,165.38,165.33,8.36973511]
[1729913771700,148.54761392,165.39,165.32,16.19853511]
[1729913771701,11.39763511,165.37,165.32,16.19853511]
[1729913776797,11.39763511,165.37,165.32,11.39853511]
[1729913777893,2.6464,165.39,165.35,8.36973511]
[1729913778101,8.36973511,165.41,165.36,8.36973511]
[1729913778502,11.39703511,165.41,165.35,8.36973511]
[1729913779106,8.36973511,165.4,165.35,8.36973511]
[1729913779300,8.36973511,165.4,165.35,11.39793511]
[1729913779301,11.39703511,165.4,165.35,11.39793511]
[1729913781810,3.0277,165.38,165.33,8.36973511]
[1729913782011,3.0277,165.38,165.34,3.41473882]
[1729913782313,3.0277,165.38,165.33,8.36973511]
[1729913782509,3.0277,165.38,165.34,3.41528994]
[1729913783015,11.39723511,165.39,165.34,3.0284]
[1729913783514,8.36973511,165.39,165.35,3.0281]
[1729913783710,8.36973511,165.39,165.33,13.14973511]
[1729913783912,8.36973511,165.39,165.34,3.41511504]
[1729913784110,8.36973511,165.39,165.34,3.0284]
[1729913784310,3.0279,165.37,165.33,4.78]
[1729913784510,8.36973511,165.39,165.34,3.41503305]
[1729913784713,8.36973511,165.39,165.33,13.14973511]
[1729913784910,8.36973511,165.39,165.34,3.41500963]
[1729913785112,8.36973511,165.39,165.33,13.14973511]
[1729913785414,11.39743511,165.39,165.34,3.41491937]
[1729913785614,11.39743511,165.39,165.33,16.17833511]